Workbook

Sheet Info en versiebeheer (hidden)

Sheet Invoer en Uitvoer
A2: Invoer: | B2: Naam Werkgever: | C2: Test
B3: Werkgeversnummer: | C3: 12345
B4: Ingangsdatum ANW: | C4: 2025-05-01 | E4: ANW Premie berekening | F4: 2025
B5: Naam deelnemer: | C5: Test
B6: Pensioennr deelnemer: | C6: 23432
B7: Geboortedatum deelnemer: | C7: 1967-04-04
B8: Geboortedatum partner: | C8: 1970-05-05
B9: Geslacht partner: | C9: M
B10: Verzekerd bedrag: | C10: 17800 | D10: ="Minimaal "& TEXT(Variabelen!F18,"€ #,##0.00")& " en Maximaal " &TEXT(Variabelen!F17,"€ #,##0.00") -> Minimaal € 10,200.00 en Maximaal € 20,400.00
A17: Uitvoer: | B17: Brutopremie per jaar: | C17: =Berekening!B25*Legaliteit -> 906.48
B18: Brutopremie per maand: | C18: =Berekening!B26*Legaliteit -> 75.54
B19: Brutopremie per 4wk: | C19: =Berekening!B27*Legaliteit -> 69.73

Sheet Berekening (hidden)
A1: Rekendatum: | B1: =rekdat -> 2025-05-01
A4: ='Invoer en Uitvoer'!B5 -> Naam deelnemer: | B4: ='Invoer en Uitvoer'!C5 -> Test
A5: ='Invoer en Uitvoer'!B6 -> Pensioennr deelnemer: | B5: ='Invoer en Uitvoer'!C6 -> 23432
A6: ='Invoer en Uitvoer'!B7 -> Geboortedatum deelnemer: | B6: ='Invoer en Uitvoer'!C7 -> 1967-04-04
A7: ='Invoer en Uitvoer'!B8 -> Geboortedatum partner: | B7: ='Invoer en Uitvoer'!C8 -> 1970-05-05
A8: ='Invoer en Uitvoer'!B9 -> Geslacht partner: | B8: ='Invoer en Uitvoer'!C9 -> M
A9: ='Invoer en Uitvoer'!B10 -> Verzekerd bedrag: | B9: ='Invoer en Uitvoer'!C10 -> 17800
A13: Burgerlijke leeftijd deelnemer: | B13: =FLOOR(YEARFRAC(B6,B1)*1,1) -> 58 | D13: Kleiner dan 66? | E13: =IF(B13<66,1,0) -> 1 | F13: Als 1 dan PVI opslag, anders 0)
A15: Burgerlijke leeftijd partner: | B15: =FLOOR(YEARFRAC(B7,B1)*1,1) -> 54
A17: Eénjarige risicopremies per €1.000 (netto) | B17: =VLOOKUP(B13,risicopremies,2,FALSE) -> 3.45
A18: Eénjarige risicopremies per €1.000 (bruto) | B18: =B17*(1+excasso_opslag)*(1+solvabiliteit_opslag)*(1+pvi_indicator*pvi_opslag) -> 4.344216616 | C18: incl excasso / solvabiliteit / PVI (als burgelijke leeftijd <66)
A20: OVL risicokapitaal: | B20: =B9*B18 -> 77327.05576
A21: OVL risicokapitaal / 1000: | B21: =B20/1000 -> 77.32705576
A23: CW factor | B23: =VLOOKUP(B15,ITPP68,2+IF(B8="M",0,1),FALSE) -> 11.7227
A25: Premie per jaar | B25: =ROUND(B23*B21,2)*Legaliteit -> 906.48
A26: Premie per maand | B26: =ROUND(B25/12,2)*Legaliteit -> 75.54
A27: Premie per 4wk | B27: =ROUND(B25/13,2)*Legaliteit -> 69.73

Sheet ITPP68 (hidden)
A1: Meubel
B3: ITPP CW factoren van 1-1-2025 tot 31-12-2025
A5: leeftijd | B5: M | C5: V
A6: 15 | B6: 31.55879 | C6: 31.60426
A7: 16 | B7: 31.17007 | C7: 31.21664
A8: 17 | B8: 30.7772 | C8: 30.82409
A9: 18 | B9: 30.37937 | C9: 30.42661
A10: 19 | B10: 29.9776 | C10: 30.02409
A11: 20 | B11: 29.57222 | C11: 29.61719
A12: 21 | B12: 29.16264 | C12: 29.20542
A13: 22 | B13: 28.74861 | C13: 28.78893
A14: 23 | B14: 28.32983 | C14: 28.36776
A15: 24 | B15: 27.907 | C15: 27.9417
A16: 25 | B16: 27.47954 | C16: 27.51052
A17: 26 | B17: 27.04717 | C17: 27.07458
A18: 27 | B18: 26.60943 | C18: 26.63354
A19: 28 | B19: 26.16569 | C19: 26.1876
A20: 29 | B20: 25.71586 | C20: 25.73584
A21: 30 | B21: 25.25852 | C21: 25.2771
A22: 31 | B22: 24.79329 | C22: 24.81111
A23: 32 | B23: 24.32078 | C23: 24.33771
A24: 33 | B24: 23.84086 | C24: 23.85684
A25: 34 | B25: 23.35311 | C25: 23.36877
A26: 35 | B26: 22.85783 | C26: 22.87349
A27: 36 | B27: 22.35498 | C27: 22.37054
A28: 37 | B28: 21.84426 | C28: 21.85995
A29: 38 | B29: 21.32572 | C29: 21.34172
A30: 39 | B30: 20.79912 | C30: 20.81549
A31: 40 | B31: 20.26455 | C31: 20.28126
A32: 41 | B32: 19.72181 | C32: 19.73903
A33: 42 | B33: 19.17075 | C33: 19.18893
A34: 43 | B34: 18.61135 | C34: 18.6306
A35: 44 | B35: 18.04274 | C35: 18.06276
A36: 45 | B36: 17.46398 | C36: 17.48526
A37: 46 | B37: 16.87447 | C37: 16.89706
A38: 47 | B38: 16.2745 | C38: 16.29924
A39: 48 | B39: 15.66411 | C39: 15.69072
A40: 49 | B40: 15.04181 | C40: 15.07001
A41: 50 | B41: 14.40593 | C41: 14.43577
A42: 51 | B42: 13.75629 | C42: 13.78769
A43: 52 | B43: 13.09293 | C43: 13.12606
A44: 53 | B44: 12.41553 | C44: 12.45006
A45: 54 | B45: 11.7227 | C45: 11.75763
A46: 55 | B46: 11.01224 | C46: 11.04721
A47: 56 | B47: 10.28482 | C47: 10.31783
A48: 57 | B48: 9.53865 | C48: 9.56985
A49: 58 | B49: 8.77406 | C49: 8.80222
A50: 59 | B50: 7.9906 | C50: 8.01521
A51: 60 | B51: 7.18656 | C51: 7.20817
A52: 61 | B52: 6.36358 | C52: 6.38126
A53: 62 | B53: 5.51929 | C53: 5.53382
A54: 63 | B54: 4.65501 | C54: 4.66625
A55: 64 | B55: 3.77006 | C55: 3.77846
A56: 65 | B56: 2.86371 | C56: 2.86881
A57: 66 | B57: 1.93487 | C57: 1.93737
A58: 67 | B58: 0.98219 | C58: 0.98291
A59: 68 | B59: 0 | C59: 0

Sheet Variabelen (hidden)
A1: MBL
A2: Bron: | B2: Rekenwaarden 2024-3 BPF_Meubel
A9: Opslagen | B9: excasso | C9: solvabiliteit | D9: pvi
A10: 2021-01-01 | B10: 0.03 | C10: 0.175 | D10: 0.0344
A11: 2022-01-01 | B11: 0.03 | C11: 0.178 | D11: 0.0344
A12: 2023-01-01 | B12: 0.03 | C12: 0.184 | D12: 0.0344
A13: 2024-01-01 | B13: 0.03 | C13: 0.217 | D13: 0.0344
A14: 2025-01-01 | B14: 0.0325 | C14: 0.179 | D14: 0.0344
B16: 2021 | C16: 2022 | D16: 2023 | E16: 2024 | F16: 2025
A17: Maximale hoogte ANW | B17: 16000 | C17: 16200 | D17: 17900 | E17: 19100 | F17: 20400
A18: Minimale hoogte ANW | B18: 8000 | C18: 8100 | D18: =ROUND(D17*50%,-2) -> 9000 | E18: =ROUND(E17*50%,-2) -> 9600 | F18: 10200
A20: X:\Finance\Actuariaat\Fondsen\BPF Meubel\Herverzekering\Ellips herverzekering Meubel.xlsx
A21: premie
A22: Begin | B22: Eind
A23: 2020-01-01 | B23: 2024-12-31
A24: ADDENDUM NO. 1 herverzekering van overlijdensrisicokapitalen
A25: M/V | B25: Eénjarige risicopremies per €1.000,= overlijdensrisicokapitaal
A26: leeftijd | B26: 0/00
A27: 17 | B27: 0.23
A28: 18 | B28: 0.23
A29: 19 | B29: 0.23
A30: 20 | B30: 0.24
A31: 21 | B31: 0.24
A32: 22 | B32: 0.24
A33: 23 | B33: 0.24
A34: 24 | B34: 0.25
A35: 25 | B35: 0.25
A36: 26 | B36: 0.25
A37: 27 | B37: 0.25
A38: 28 | B38: 0.26
A39: 29 | B39: 0.26
A40: 30 | B40: 0.29
A41: 31 | B41: 0.33
A42: 32 | B42: 0.38
A43: 33 | B43: 0.41
A44: 34 | B44: 0.45
A45: 35 | B45: 0.47
A46: 36 | B46: 0.48
A47: 37 | B47: 0.49
A48: 38 | B48: 0.5
A49: 39 | B49: 0.57
A50: 40 | B50: 0.64
A51: 41 | B51: 0.71
A52: 42 | B52: 0.83
A53: 43 | B53: 0.98
A54: 44 | B54: 1.11
A55: 45 | B55: 1.26
A56: 46 | B56: 1.34
A57: 47 | B57: 1.5
A58: 48 | B58: 1.63
A59: 49 | B59: 1.72
A60: 50 | B60: 1.81
A61: 51 | B61: 2.02
A62: 52 | B62: 2.24
A63: 53 | B63: 2.56
A64: 54 | B64: 2.71
A65: 55 | B65: 2.87
A66: 56 | B66: 3.18
A67: 57 | B67: 3.32
A68: 58 | B68: 3.45
A69: 59 | B69: 3.53
A70: 60 | B70: 3.68
A71: 61 | B71: 4
A72: 62 | B72: 4.51
A73: 63 | B73: 4.88
A74: 64 | B74: 5.42
A75: 65 | B75: 6.31
A76: 66 | B76: 6.89
A77: 67 | B77: 7.66
A78: 68 | B78: 8.51
A79: 69 | B79: 9.43

Sheet Legaliteit (hidden)
